[Event "34th Pula Open 2022"]
[Site "Pula"]
[Date "2022.06.25"]
[Round "9.10"]
[White "Jurakic, Lukas"]
[Black "De Vleeschauwer, Maarten"]
[Result "1-0"]
[ECO "B48"]
[WhiteElo "2147"]
[BlackElo "2255"]
[Annotator "TA"]
[PlyCount "85"]
[EventDate "2022.06.18"]
[EventType "swiss"]
[EventCountry "CRO"]
[SourceTitle "playchess.com"]
[Source "ChessBase"]
[SourceQuality "1"]
[TimeControl "5400+30"]

{[%evp 11,85,29,31,13,10,15,22,26,41,39,48,32,54,59,43,40,54,42,51,2,24,-41,12,0,-10,-30,103,33,167,173,195,148,141,139,140,133,137,106,123,124,116,123,116,117,182,171,157,162,267,268,265,282,281,235,469,460,822,804,922,894,1037,1023,1004,893,2000,1901,1817,1878,2429,2106,29974,29975,7374,1821,3464,2197]} 1. e4 {[%emt 0:00:05]} c5 {[%emt 0:00:07]} 2. Nf3 {[%emt 0:00:07]} e6 {[%emt 0:00:04]} 3. d4 {[%emt 0:00:07]} cxd4 {[%emt 0:00:05]} 4. Nxd4 {[%emt 0:00:06]} Nc6 {[%emt 0:00:07]} 5. Nc3 {[%emt 0:00:07]} Qc7 {[%emt 0:00:11]} 6. Be3 {[%emt 0:00:09]} a6 {[%emt 0:00:12]} 7. Qf3 {[%emt 0:00:14] 7.g4 is the modern continuation. B48: Sicilian: Taimanov: 5 Nc3 Qc7 6 Be3 a6 without Be2.} Bd6 {[%emt 0:03:59]} 8. O-O-O {[%emt 0:00:29]} Be5 $1 {[%emt 0:00:06]} 9. g3 {[%emt 0:01:08] The position is equal.} Nf6 {[%emt 0:04:20]} 10. Qe2 {[%emt 0:04:56]} b5 {[%emt 0:27:49]} 11. Bg2 {[%emt 0:07:56]} O-O {[%emt 0:18:56]} 12. f4 {[%emt 0:05:26]} Bxd4 {[%emt 0:00:05]} 13. Bxd4 {[%emt 0:00:07]} Nxd4 {[%emt 0:00:29]} 14. Rxd4 {[%emt 0:00:26] [#] e5 is the strong threat.} e5 {[%emt 0:00:11]} 15. Rd3 {[%emt 0:07:50]} (15. fxe5 $14 Qxe5 16. Qd2) 15... Bb7 {[%emt 0:06:26] [#]} 16. Rf1 $146 {[%emt 0:08:36]} (16. g4 $11) ({Predecessor:} 16. Re1 Rac8 17. Qd2 Rfe8 18. a3 Qc4 19. f5 a5 20. g4 b4 21. Nb1 d5 22. exd5 {0-1 (30) Mitterwald,J (2189)-Maurer,J (2211) Austria 2018}) 16... Rfe8 {[%emt 0:03:59]} (16... b4 $15 17. Nd5 Bxd5 18. exd5 Rae8) 17. a3 {[%emt 0:09:24]} Rac8 {[%emt 0:04:45]} 18. f5 {[%emt 0:04:37]} Red8 {[%emt 0:13:30]} (18... h6 $11 {keeps the balance.}) 19. Rfd1 {[%emt 0:09:57] White is more active.} (19. g4 $16) 19... Qa5 {[%emt 0:02:20] [#]} ({Black should play} 19... Qb6 $14) 20. g4 $1 $18 {[%emt 0:07:49] Hoping for g5.} d5 {[%emt 0:03:36]} 21. Nxd5 {[%emt 0:04:30]} ({White should try} 21. exd5 $18 b4 22. axb4 Qxb4 23. Qxe5) 21... Bxd5 $16 {[%emt 0:01:30]} 22. exd5 {[%emt 0:00:17] And now g5 would win.} Qa4 {[%emt 0:00:08]} 23. h3 {[%emt 0:02:24]} Rd6 {[%emt 0:02:49]} 24. R1d2 {[%emt 0:01:35]} Qf4 {[%emt 0:01:31]} 25. Qe3 {[%emt 0:03:13]} Qxe3 {[%emt 0:00:17]} 26. Rxe3 {[%emt 0:00:05]} Nd7 {[%emt 0:00:06]} 27. b3 {[%emt 0:02:41][%cal Bb2b3,Bb3c4,Bc4c5,Bc5c6][%mdl 32]} f6 {[%emt 0:00:14]} (27... Kf8 $16 28. g5 a5) 28. Kb2 $18 {[%emt 0:01:07]} Nb6 {[%emt 0:00:38]} 29. Rc3 {[%emt 0:01:15]} Kf7 {[%emt 0:03:15]} (29... Rxc3 $142 30. Kxc3 a5) 30. Rxc8 {[%emt 0:00:28]} Nxc8 {[%emt 0:00:03][%mdl 4096] Endgame KRB-KRN} 31. c4 {[%emt 0:00:24]} bxc4 {[%emt 0:01:07]} 32. bxc4 {[%emt 0:00:05]} Rb6+ $2 {[%emt 0:00:33]} (32... Nb6) 33. Kc3 {[%emt 0:01:03]} Nd6 {[%emt 0:02:17]} (33... Ke8 $142 34. c5 Rb5) 34. c5 $1 {[%emt 0:00:42][%csl LRb6,LRd6]} Nb5+ {[%emt 0:00:03]} 35. Kd3 {[%emt 0:00:42]} Rb8 {[%emt 0:00:04]} 36. Rb2 {[%emt 0:01:02] Strongly threatening a4.} Rc8 {[%emt 0:00:48]} 37. a4 {[%emt 0:01:10]} Nd4 {[%emt 0:01:33]} 38. Rb7+ {[%emt 0:00:15]} Ke8 {[%emt 0:00:18]} 39. c6 {[%emt 0:01:09]} Kf8 {[%emt 0:00:54]} 40. Be4 {[%emt 0:01:53]} h5 {[%emt 0:00:31]} 41. gxh5 {[%emt 0:00:27]} Kg8 {[%emt 0:00:25]} 42. Rb6 {[%emt 0:02:53]} (42. c7 $142 Kf7 43. Rb8 Nxf5 44. Rxc8 Ne7 45. Bg6+ Nxg6 46. hxg6+ Kxg6 47. Rf8) 42... Kh7 {[%emt 0:00:14]} 43. d6 {[%emt 0:00:35] Weighted Error Value: White=0.16 (very precise) /Black=0.64} 1-0

[Event "34th Pula Open 2022"]
[Site "Pula"]
[Date "2022.06.25"]
[Round "9.11"]
[White "Petran, Peter"]
[Black "Sterck, Arno"]
[Result "1-0"]
[ECO "A12"]
[WhiteElo "2225"]
[BlackElo "2245"]
[Annotator "TA"]
[PlyCount "155"]
[EventDate "2022.06.18"]
[EventType "swiss"]
[EventCountry "CRO"]
[SourceTitle "playchess.com"]
[Source "ChessBase"]
[SourceQuality "1"]
[TimeControl "5400+30"]

{[%evp 20,155,0,-12,0,0,15,0,9,31,42,41,28,45,93,91,102,87,80,78,202,105,170,142,333,317,300,54,58,0,27,2,21,-18,108,42,114,84,91,0,0,0,0,0,0,0,42,37,302,308,335,331,335,339,329,229,376,238,267,236,241,225,314,218,212,212,198,191,181,8,11,9,25,24,26,29,43,8,8,0,0,0,104,74,334,327,306,287,438,421,333,8,8,8,8,8,76,76,83,125,579,572,568,10,11,13,29969,29970,29970,29971,29973,29973,29975,8,8,8,29973,29974,29973,29974,29975,29975,29976,29976,29976,29977,29977,29978,29981,29970,29986,29978,29977,29979,29979,29978,29961,5060]} 1. c4 {[%emt 0:01:27]} c6 {[%emt 0:00:08]} 2. Nf3 {[%emt 0:00:28]} d5 {[%emt 0:00:07]} 3. b3 {[%emt 0:00:04]} Bf5 {[%emt 0:00:14]} 4. Bb2 {[%emt 0:00:18]} e6 {[%emt 0:00:06]} 5. g3 {[%emt 0:00:23]} Nf6 {[%emt 0:00:05]} 6. Bg2 {[%emt 0:00:06]} h6 {[%emt 0:00:35]} 7. O-O {[%emt 0:00:09]} Be7 {[%emt 0:00:02]} 8. d3 {[%emt 0:00:36]} O-O {[%emt 0:00:08]} 9. Nbd2 {[%emt 0:00:13]} a5 {[%emt 0:00:05] outshines the older 9...Nbd7.} 10. a3 {[%emt 0:00:08]} Bh7 {[%emt 0:00:30]} 11. Qc2 {[%emt 0:02:32]} Na6 {[%emt 0:00:43] A12: English Opening: 1...c6 with b3 by White.} 12. Rfc1 {[%emt 0:02:51]} Rc8 {[%emt 0:03:10]} 13. Bc3 {[%emt 0:06:09]} b5 {[%emt 0:05:43] The position is equal.} 14. Qb2 {[%emt 0:00:17]} bxc4 {[%emt 0:18:57]} 15. bxc4 {[%emt 0:00:40]} Rb8 {[%emt 0:05:10]} 16. Qc2 {[%emt 0:00:10] [#]} Bc5 $146 {[%emt 0:09:51]} (16... Nc5 $14 {is superior.}) ({Predecessor:} 16... Nc5 17. Nd4 Qc7 18. cxd5 cxd5 19. Bxa5 Qxa5 20. Nc6 Qc7 21. Nxe7+ Qxe7 22. Qxc5 Qxc5 23. Rxc5 {½-½ (35) Gil Reguera,J (2400)-Campos Lopez,M (2335) Zaragoza 1991}) 17. Qa4 {[%emt 0:07:43][%csl LRa5,LRc6]} d4 {[%emt 0:01:33]} 18. Bxa5 {[%emt 0:00:19]} Qd6 {[%emt 0:00:04]} 19. Rcb1 {[%emt 0:11:50]} Rxb1+ {[%emt 0:02:14]} (19... Ra8 $16) 20. Nxb1 {[%emt 0:01:07]} ({White should try} 20. Rxb1 $18 {And now Bb6 would win.} Nd7 21. Ne1) 20... Ra8 {[%emt 0:00:12]} (20... e5 $16) 21. Bb4 $1 $18 {[%emt 0:04:21]} (21. Nbd2 $6 Nb8 $11) 21... Qb8 $2 {[%emt 0:10:23]} (21... e5 $16 {is a better defense.}) 22. Bxc5 {[%emt 0:02:15]} (22. Qxc6 Nxb4 23. Qxc5 Nc2 24. Nxd4 Nxa1 25. Bxa8 Qxb1+ 26. Kg2 Bg6 $14) 22... Nxc5 {[%emt 0:00:06]} 23. Qc2 {[%emt 0:00:15]} ({White must play} 23. Qxc6 $18 Ra5 24. Nbd2 (24. Nxd4 Bxd3 25. exd3 Qb2 $16)) 23... e5 $14 {[%emt 0:02:29]} 24. Nfd2 {[%emt 0:00:33] Inhibits e4.} (24. Nbd2 $14) 24... Ra6 {[%emt 0:00:04]} 25. Ra2 {[%emt 0:01:18]} Rb6 {[%emt 0:13:34]} 26. f3 {[%emt 0:02:12]} e4 {[%emt 0:16:21]} (26... Ne8 $11) 27. dxe4 {[%emt 0:02:42]} ({White should play} 27. fxe4 $16 Ng4 28. a4) 27... Qd6 {[%emt 0:01:34]} (27... Nfd7 $14) 28. Bf1 {[%emt 0:04:57]} h5 {[%emt 0:00:06][%cal Oh5h4]} 29. a4 {[%emt 0:07:26]} ({Better is} 29. Qd1 $16) 29... h4 $1 $11 {[%emt 0:00:05]} 30. a5 {[%emt 0:00:03][%cal Ba4a5,Ba5a6,Ba6a7][%mdl 32]} (30. gxh4 $6 Nfd7 31. a5 Rb7 $16) 30... Rb8 {[%emt 0:00:13]} 31. gxh4 {[%emt 0:09:10]} Qf4 {[%emt 0:05:19]} 32. a6 {[%emt 0:03:49]} Ncxe4 {[%emt 0:00:50]} 33. a7 $1 {[%emt 0:06:22]} (33. fxe4 Ng4 34. Nf3 Qe3+ 35. Kh1 Bxe4 $17) 33... Ra8 {[%emt 0:00:05][%mdl 8192]} 34. Qb3 $1 $18 {[%emt 0:01:14]} ({Inferior is} 34. fxe4 Ng4 35. Nf3 Qe3+ 36. Kh1 Bxe4 $11) ({Not} 34. Nxe4 Qe3+ 35. Kg2 (35. Kh1 $2 Nxe4 36. Qb2 Bf5 $19) 35... Nxe4 $11) 34... Nc5 {[%emt 0:00:14] Prevents Qb7.} 35. Qb6 {[%emt 0:03:08][%csl LRc5,LRc6]} Qd6 {[%emt 0:00:06]} 36. Bh3 {[%emt 0:02:31]} Bxb1 {[%emt 0:01:04]} 37. Qxb1 {[%emt 0:00:26]} d3 {[%emt 0:01:45]} (37... Qc7 $142 38. Qa1 d3) 38. e3 {[%emt 0:00:31]} Qe5 {[%emt 0:02:28]} 39. Nf1 {[%emt 0:00:54] Strongly threatening Qb6.} Qc7 {[%emt 0:00:30] Inhibits Qb6.} 40. Qa1 {[%emt 0:02:13]} Nfd7 {[%emt 0:01:21]} 41. Qd4 {[%emt 0:03:10] Black must now prevent h5.} Rxa7 {[%emt 0:00:04]} 42. Rxa7 {[%emt 0:00:24]} Qxa7 {[%emt 0:00:02]} 43. Bxd7 {[%emt 0:02:28]} Qxd7 {[%emt 0:00:07]} 44. Qxd7 {[%emt 0:02:22]} (44. Qxc5 $18 d2 45. Nxd2 $1 {[%mdl 512]} Qxd2 46. h5 (46. Qxc6 Qxe3+ 47. Kf1 Qd3+ 48. Kf2 Qd2+ 49. Kg3 Qe1+ 50. Kg4 Qg1+ 51. Kf5 g6+ 52. Ke4 Qe1+ 53. Kd3 Qd1+ 54. Kc3 Qe1+ 55. Kb3 Qxh4 $16)) 44... Nxd7 {[%emt 0:00:04][%mdl 4096] Endgame KN-KN} 45. Kf2 {[%emt 0:00:05]} Ne5 {[%emt 0:00:33]} 46. Nd2 {[%emt 0:00:17]} Kh7 {[%emt 0:00:04]} 47. e4 {[%emt 0:01:11]} Kg6 {[%emt 0:00:16]} 48. f4 {[%emt 0:02:25]} Ng4+ {[%emt 0:00:16]} 49. Kg3 {[%emt 0:00:33]} Kh5 {[%emt 0:00:06]} 50. e5 {[%emt 0:02:04]} Ne3 {[%emt 0:00:31]} (50... g6 $11) 51. Kf3 $16 {[%emt 0:00:18]} Nf5 {[%emt 0:00:08][%mdl 8192]} (51... Ng4 $16 {might work better.}) 52. Ke4 $18 {[%emt 0:00:02][%csl LRd3,LRf5]} Nxh4 {[%emt 0:00:47]} 53. Kxd3 {[%emt 0:00:09] Threatens to win with Ke4.} Kg4 {[%emt 0:01:02]} (53... Kg6 $142 54. Ke4 f5+ 55. Ke3 Ng2+ 56. Kf3 Nh4+ 57. Ke3 (57. Kg3 Kh5 $18) 57... Ng2+ 58. Kf3 Nh4+ 59. Kg3 Kh5) 54. Ke4 {[%emt 0:00:12]} f5+ {[%emt 0:00:58]} 55. exf6 $2 {[%emt 0:02:16]} (55. Ke3 $1 $18) 55... gxf6 $11 {[%emt 0:00:05]} 56. Nf1 {[%emt 0:02:36]} f5+ {[%emt 0:00:52]} 57. Ke5 {[%emt 0:00:07] aiming for Ne3+.} Nf3+ {[%emt 0:00:20]} (57... Ng6+ $1 $11 {remains equal.} 58. Kd6 Nxf4) 58. Kd6 $16 {[%emt 0:00:14]} Kxf4 {[%emt 0:00:06]} 59. Kxc6 {[%emt 0:00:14] Hoping for Kd5.} Ke5 {[%emt 0:02:41][%mdl 8192]} (59... Ne5+ $16 {is a better chance.} 60. Kd5 Nd3) 60. c5 $18 {[%emt 0:00:20]} Nd4+ {[%emt 0:01:04]} 61. Kd7 $2 {[%emt 0:00:10]} (61. Kb6 $18) 61... Kd5 $11 {[%emt 0:00:24] Inhibits c6.} 62. h4 {[%emt 0:00:33][%cal Bh2h4,Bh4h5][%mdl 32]} Nf3 $2 {[%emt 0:01:51][%mdl 8192]} (62... f4 $11) 63. h5 {[%emt 0:00:08]} Ne5+ {[%emt 0:00:13]} 64. Ke7 {[%emt 0:00:18]} Ng4 {[%emt 0:00:31] [#]} 65. Ne3+ $1 {[%emt 0:01:35][%mdl 512]} Kxc5 {[%emt 0:00:08] [#]} (65... Nxe3 66. h6) 66. Nxf5 $2 {[%emt 0:00:07]} (66. Ke6 $1 {mates} Kb4 (66... Nxe3 67. h6) 67. Kxf5 $1 Nxe3+ 68. Kg5 Kc4 69. h6 Kd5 70. h7 Nc2 71. Kf4) 66... Kd5 {[%emt 0:00:22]} 67. Kf7 {[%emt 0:01:01][%cal Of5e3] Intending Ne3+! and mate.} Ke5 $2 {[%emt 0:00:06][%mdl 8192] [#]} (67... Ke4 $11) 68. Ne3 $1 {[%emt 0:00:47][%mdl 512] White mates.} Nf6 {[%emt 0:01:11]} 69. h6 {[%emt 0:00:09]} Nh7 {[%emt 0:00:05]} 70. Kg7 {[%emt 0:02:38]} Ng5 {[%emt 0:00:09]} 71. Kg6 {[%emt 0:00:12]} Ne6 {[%emt 0:00:04]} 72. Ng4+ {[%emt 0:00:39]} Kf4 {[%emt 0:00:13]} 73. Nf6 {[%emt 0:00:09]} Nf8+ {[%emt 0:01:07]} 74. Kg7 {[%emt 0:00:36]} Kg5 {[%emt 0:00:29]} 75. Ng4 {[%emt 0:00:23]} Ne6+ {[%emt 0:00:40]} 76. Kg8 {[%emt 0:00:14]} Nf4 {[%emt 0:00:49]} 77. h7 {[%emt 0:00:22]} Ng6 {[%emt 0:00:03] [#]} 78. Ne5 $1 {[%emt 0:00:22][%mdl 512] Weighted Error Value: White=0.35/Black=0.62} 1-0

[Event "34th Pula Open 2022"]
[Site "Pula"]
[Date "2022.06.25"]
[Round "9.12"]
[White "Medancic, Rikard"]
[Black "Dahl, Trygve"]
[Result "1/2-1/2"]
[WhiteElo "2145"]
[BlackElo "2237"]
[Annotator "TA"]
[PlyCount "38"]
[EventDate "2022.06.18"]
[EventType "swiss"]
[EventCountry "CRO"]
[SourceTitle "playchess.com"]
[Source "ChessBase"]
[SourceQuality "1"]
[TimeControl "5400+30"]

{[%evp 12,14,30,33,27]} 1. d4 {[%emt 0:00:10]} Nf6 {[%emt 0:02:57]} 2. c4 {[%emt 0:00:16]} Nc6 {[%emt 0:01:45]} 3. Nf3 {[%emt 0:00:37]} e6 {[%emt 0:00:05]} 4. g3 {[%emt 0:01:22]} Bb4+ {[%emt 0:00:06]} 5. Bd2 {[%emt 0:00:39]} Qe7 {[%emt 0:02:52]} 6. Nc3 {[%emt 0:02:11]} Bxc3 $1 {[%emt 0:01:06] 6...Bxc3 is better than 6...0-0.} 7. Bxc3 {[%emt 0:00:07]} Ne4 {[%emt 0:00:43] [#] A rather calm draw. E11: Bogo-Indian.} {Predecessor:} 8. Rc1 $146 O-O 9. Bg2 d6 10. d5 Nxc3 11. Rxc3 Nd8 12. O-O b6 13. dxe6 fxe6 14. Nd4 Rb8 15. Re3 Bd7 16. Qd3 a5 17. f4 Kh8 18. g4 g6 19. g5 e5 {0-1 (50) Ding,L (2791)-Rapport,R (2759) Chess.com INT 2020} 1/2-1/2